[Event "Stay Safe Play From Home slow tournament"]
[Site "Emanuel Lasker Arena"]
[Date "2020.08.29"]
[Round "2"]
[White "Kongle"]
[Black "MSteim67"]
[Result "1-0"]
[WhiteElo "1965"]
[BlackElo "1720"]
[Annotator "NA"]
[PlyCount "81"]
[EventDate "2020.08.29"]
[EventType "swiss (rapid)"]
[TimeControl "900+5"]

1. d4 {[%emt 0:00:02]} d5 {[%emt 0:00:02]} 2. c4 {[%emt 0:00:01]} e6 {[%emt 0:00:03]} 3. Nc3 {[%emt 0:00:01]} Nf6 {[%emt 0:00:03]} 4. Bg5 {[%emt 0:00:02]} h6 {[%emt 0:00:07]} 5. Bh4 {[%emt 0:00:06]} Be7 {[%emt 0:00:04]} 6. e3 {[%emt 0:00:02]} O-O {[%emt 0:00:04]} 7. Bd3 {[%emt 0:00:01]} dxc4 {[%emt 0:00:12]} 8. Bxc4 {[%emt 0:00:02]} Nbd7 {[%emt 0:00:37]} 9. Bd3 {[%emt 0:00:15]} c6 {[%emt 0:00:23]} 10. e4 {[%emt 0:00:40]} c5 {[%emt 0:01:10]} 11. e5 {[%emt 0:01:34]} Nd5 {[%emt 0:00:35]} 12. Bxe7 {[%emt 0:00:17]} Qxe7 {[%emt 0:00:08]} 13. Nxd5 {[%emt 0:01:36]} exd5 {[%emt 0:00:10]} 14. Nf3 {[%emt 0:00:04]} cxd4 {[%emt 0:00:08]} 15. O-O {[%emt 0:00:03]} Nxe5 {[%emt 0:00:06]} 16. Re1 {[%emt 0:00:17]} Nxf3+ {[%emt 0:00:11]} 17. Qxf3 {[%emt 0:00:03]} Be6 {[%emt 0:00:25]} 18. Re5 {[%emt 0:00:31]} Qb4 {[%emt 0:00:42]} 19. b3 {[%emt 0:00:35]} Rac8 {[%emt 0:00:10]} 20. Rae1 {[%emt 0:00:28]} Qd2 {[%emt 0:00:51]} 21. R5e2 {[%emt 0:00:22]} Qc3 {[%emt 0:00:03]} 22. h3 {[%emt 0:00:08]} Qb4 {[%emt 0:00:45]} 23. Qf4 {[%emt 0:01:20]} Rc3 {[%emt 0:00:24]} 24. Bb1 {[%emt 0:00:04]} a5 {[%emt 0:00:40]} 25. Rd2 {[%emt 0:00:31]} d3 {[%emt 0:01:56]} 26. Qxb4 {[%emt 0:00:37]} axb4 {[%emt 0:00:05]} 27. Bxd3 {[%emt 0:00:01]} Rfc8 {[%emt 0:00:10]} 28. Kh2 {[%emt 0:00:15]} b6 {[%emt 0:00:23]} 29. f4 {[%emt 0:00:06]} d4 {[%emt 0:00:16]} 30. f5 {[%emt 0:00:09]} Bd5 {[%emt 0:00:27]} 31. Re5 {[%emt 0:00:18]} Ba8 {[%emt 0:00:35]} 32. Re7 {[%emt 0:00:29]} R3c7 {[%emt 0:00:28]} 33. Rde2 {[%emt 0:00:32]} Rc3 {[%emt 0:00:28]} 34. Bc4 {[%emt 0:00:13]} Rf8 {[%emt 0:00:30]} 35. Rxf7 {[%emt 0:00:16]} g6 {[%emt 0:02:42]} 36. fxg6 {[%emt 0:02:18]} Rxc4 {[%emt 0:00:23]} 37. Rxf8+ {[%emt 0:00:19]} Kxf8 {[%emt 0:00:17]} 38. bxc4 {[%emt 0:00:01]} Kg7 {[%emt 0:00:24]} 39. Re6 {[%emt 0:00:16]} d3 {[%emt 0:00:07]} 40. Rxb6 {[%emt 0:00:15]} Be4 {[%emt 0:00:33]} 41. c5 {[%emt 0:00:42] Zeit (Lag: Av=1.06s, max=3.8s)} 1-0

[Event "Stay Safe Play From Home slow tournament"]
[Site "Emanuel Lasker Arena"]
[Date "2020.08.29"]
[Round "2"]
[White "Dave_H"]
[Black "Aadi3110theking"]
[Result "0-1"]
[WhiteElo "1875"]
[BlackElo "2078"]
[Annotator "NA"]
[PlyCount "40"]
[EventDate "2020.08.29"]
[EventType "swiss (rapid)"]
[WhiteTeam "SK Vellmar"]
[TimeControl "900+5"]

{Halt, David (2088)} 1. e4 {[%emt 0:00:06]} c5 {[%emt 0:00:07]} 2. Nc3 {[%emt 0:00:07]} Nc6 {[%emt 0:00:08]} 3. f4 {[%emt 0:00:03]} e6 {[%emt 0:00:08]} 4. Nf3 {[%emt 0:00:04]} d5 {[%emt 0:00:06]} 5. Bb5 {[%emt 0:00:04]} Bd7 {[%emt 0:00:09]} 6. exd5 {[%emt 0:00:04]} exd5 {[%emt 0:00:14]} 7. Nxd5 {[%emt 0:00:06]} a6 {[%emt 0:00:20]} 8. Bxc6 {[%emt 0:00:27]} Bxc6 {[%emt 0:00:10]} 9. Qe2+ {[%emt 0:00:08]} Be7 {[%emt 0:00:08]} 10. Nxe7 {[%emt 0:00:09]} Nxe7 {[%emt 0:00:11]} 11. O-O {[%emt 0:00:10]} O-O {[%emt 0:00:08]} 12. Ne5 {[%emt 0:00:15]} Re8 {[%emt 0:00:39]} 13. d3 {[%emt 0:00:26]} Nf5 {[%emt 0:00:17]} 14. Qg4 {[%emt 0:04:19]} Qd4+ {[%emt 0:00:21]} 15. Kh1 {[%emt 0:00:03]} Rxe5 {[%emt 0:00:10]} 16. Qh3 {[%emt 0:02:07]} Ne3 {[%emt 0:00:44]} 17. fxe5 {[%emt 0:04:45]} Nxf1 {[%emt 0:00:30]} 18. c3 {[%emt 0:00:31]} Qxe5 {[%emt 0:00:15]} 19. Qh4 {[%emt 0:01:18]} Qe2 {[%emt 0:00:16]} 20. Qh3 {[%emt 0:01:17]} Qe1 {[%emt 0:00:06] Dave_H gibt auf (Lag: Av=1.22s, max=2.2s)} 0-1

[Event "Stay Safe Play From Home slow tournament"]
[Site "Emanuel Lasker Arena"]
[Date "2020.08.29"]
[Round "3"]
[White "Kongle"]
[Black "B1b"]
[Result "0-1"]
[WhiteElo "1972"]
[BlackElo "2000"]
[Annotator "NA"]
[PlyCount "96"]
[EventDate "2020.08.29"]
[EventType "swiss (rapid)"]
[TimeControl "900+5"]

1. d4 {[%emt 0:00:02]} d5 {[%emt 0:00:27]} 2. c4 {[%emt 0:00:17]} e6 {[%emt 0:00:02]} 3. Nc3 {[%emt 0:00:03]} Nf6 {[%emt 0:00:02]} 4. Nf3 {[%emt 0:00:09]} Be7 {[%emt 0:00:02]} 5. e3 {[%emt 0:00:04]} O-O {[%emt 0:00:08]} 6. Bd3 {[%emt 0:00:03]} b6 {[%emt 0:00:05]} 7. cxd5 {[%emt 0:00:05]} exd5 {[%emt 0:00:00]} 8. O-O {[%emt 0:00:02]} Nbd7 {[%emt 0:00:39]} 9. Bd2 {[%emt 0:00:22]} Re8 {[%emt 0:00:10]} 10. Rc1 {[%emt 0:00:14]} c6 {[%emt 0:00:02]} 11. a3 {[%emt 0:00:58]} Bd6 {[%emt 0:00:09]} 12. Qc2 {[%emt 0:00:45]} Nf8 {[%emt 0:00:08]} 13. h3 {[%emt 0:00:48]} Ng6 {[%emt 0:00:15]} 14. b4 {[%emt 0:00:17]} Bd7 {[%emt 0:00:24]} 15. Qb3 {[%emt 0:02:01]} Ne4 {[%emt 0:00:31]} 16. Rfd1 {[%emt 0:00:07]} Nh4 {[%emt 0:01:46]} 17. Be2 {[%emt 0:02:59]} Nxf3+ {[%emt 0:00:43]} 18. Bxf3 {[%emt 0:00:03]} Qh4 {[%emt 0:00:09]} 19. Bxe4 {[%emt 0:02:14]} dxe4 {[%emt 0:00:05]} 20. Ne2 {[%emt 0:00:48]} g5 {[%emt 0:01:21]} 21. Ng3 {[%emt 0:00:36]} Bxg3 {[%emt 0:00:07]} 22. fxg3 {[%emt 0:00:03]} Qxg3 {[%emt 0:00:09]} 23. Be1 {[%emt 0:00:01]} Qd6 {[%emt 0:00:24]} 24. d5 {[%emt 0:00:15]} c5 {[%emt 0:01:02]} 25. bxc5 {[%emt 0:00:14]} bxc5 {[%emt 0:00:03]} 26. Qc4 {[%emt 0:00:26]} Rac8 {[%emt 0:00:15]} 27. Rd2 {[%emt 0:00:03]} g4 {[%emt 0:00:32]} 28. hxg4 {[%emt 0:00:13]} Bxg4 {[%emt 0:00:05]} 29. Rf2 {[%emt 0:00:18]} Re5 {[%emt 0:00:48]} 30. Rf4 {[%emt 0:00:31]} h5 {[%emt 0:00:28]} 31. Bc3 {[%emt 0:00:38]} Rxd5 {[%emt 0:00:26]} 32. Rcf1 {[%emt 0:00:03]} f5 {[%emt 0:01:35]} 33. Ba1 {[%emt 0:00:36]} Kh7 {[%emt 0:00:47]} 34. Qc3 {[%emt 0:00:21]} Rg8 {[%emt 0:00:22]} 35. Rxe4 {[%emt 0:01:08]} Rd3 {[%emt 0:02:06]} 36. Qc4 {[%emt 0:00:09]} fxe4 {[%emt 0:00:14]} 37. Qf7+ {[%emt 0:00:03]} Kh6 {[%emt 0:00:11]} 38. Rf6+ {[%emt 0:00:02]} Qxf6 {[%emt 0:00:05]} 39. Qxf6+ {[%emt 0:00:02]} Rg6 {[%emt 0:00:01]} 40. Qf4+ {[%emt 0:00:03]} Kh7 {[%emt 0:00:04]} 41. Qf7+ {[%emt 0:00:05]} Kh6 {[%emt 0:00:03]} 42. Qf8+ {[%emt 0:00:05]} Kg5 {[%emt 0:00:37]} 43. Be5 {[%emt 0:00:13]} Rd1+ {[%emt 0:00:09]} 44. Kh2 {[%emt 0:00:02]} Bf5 {[%emt 0:00:07]} 45. Bf4+ {[%emt 0:00:03]} Kg4 {[%emt 0:00:05]} 46. Qe7 {[%emt 0:00:14]} h4 {[%emt 0:00:12]} 47. Qc7 {[%emt 0:00:07]} Rd2 {[%emt 0:00:11]} 48. Qxa7 {[%emt 0:00:04]} h3 {[%emt 0:00:01] Time (Lag: Av=0.95s, max=4.0s)} 0-1

[Event "Stay Safe Play From Home slow tournament"]
[Site "Emanuel Lasker Arena"]
[Date "2020.08.29"]
[Round "4"]
[White "Emine Yanik"]
[Black "Kongle"]
[Result "1-0"]
[WhiteElo "1733"]
[BlackElo "1956"]
[Annotator "NA"]
[PlyCount "101"]
[EventDate "2020.08.29"]
[EventType "swiss (rapid)"]
[TimeControl "900+5"]

1. f4 {[%emt 0:00:05]} b6 {[%emt 0:00:09]} 2. b3 {[%emt 0:00:05]} Bb7 {[%emt 0:00:01]} 3. Nf3 {[%emt 0:00:02]} d6 {[%emt 0:00:06]} 4. Bb2 {[%emt 0:00:02]} f6 {[%emt 0:00:02]} 5. d4 {[%emt 0:00:16]} Nd7 {[%emt 0:00:05]} 6. Nbd2 {[%emt 0:00:23]} Nh6 {[%emt 0:00:08]} 7. e4 {[%emt 0:00:09]} e6 {[%emt 0:00:10]} 8. Nh4 {[%emt 0:00:17]} Qe7 {[%emt 0:00:20]} 9. a4 {[%emt 0:00:18]} a6 {[%emt 0:00:05]} 10. Bd3 {[%emt 0:00:24]} O-O-O {[%emt 0:00:07]} 11. Qe2 {[%emt 0:00:07]} f5 {[%emt 0:00:08]} 12. Nhf3 {[%emt 0:00:10]} fxe4 {[%emt 0:00:03]} 13. Nxe4 {[%emt 0:00:13]} a5 {[%emt 0:00:17]} 14. Ba3 {[%emt 0:00:37]} Nf6 {[%emt 0:00:33]} 15. b4 {[%emt 0:00:46]} Nxe4 {[%emt 0:00:19]} 16. Bxe4 {[%emt 0:00:03]} Bxe4 {[%emt 0:00:02]} 17. Qxe4 {[%emt 0:00:00]} d5 {[%emt 0:00:02]} 18. Qe2 {[%emt 0:00:29]} axb4 {[%emt 0:00:03]} 19. Qa6+ {[%emt 0:00:24]} Kb8 {[%emt 0:00:04]} 20. Ne5 {[%emt 0:00:24]} Qd6 {[%emt 0:02:53]} 21. a5 {[%emt 0:01:05]} bxa3 {[%emt 0:01:20]} 22. axb6 {[%emt 0:00:18]} Qb4+ {[%emt 0:00:24]} 23. Ke2 {[%emt 0:00:29]} cxb6 {[%emt 0:01:45]} 24. Nc6+ {[%emt 0:00:09]} Kc7 {[%emt 0:00:01]} 25. Nxb4 {[%emt 0:00:07]} Bxb4 {[%emt 0:00:02]} 26. Qa7+ {[%emt 0:01:26]} Kc8 {[%emt 0:00:18]} 27. Qxb6 {[%emt 0:00:13]} Bd6 {[%emt 0:00:07]} 28. Rhb1 {[%emt 0:00:10]} Kd7 {[%emt 0:00:11]} 29. Qb7+ {[%emt 0:00:18]} Bc7 {[%emt 0:00:29]} 30. Rb6 {[%emt 0:00:13]} Rc8 {[%emt 0:00:30]} 31. Qc6+ {[%emt 0:00:03]} Ke7 {[%emt 0:00:05]} 32. Qxe6+ {[%emt 0:00:02]} Kf8 {[%emt 0:00:08]} 33. Rb7 {[%emt 0:00:06]} Re8 {[%emt 0:00:21]} 34. Qxe8+ {[%emt 0:00:09]} Kxe8 {[%emt 0:00:02]} 35. Rxc7 {[%emt 0:00:00]} Nf7 {[%emt 0:00:16]} 36. Rxa3 {[%emt 0:00:03]} Nd8 {[%emt 0:00:20]} 37. Ra8 {[%emt 0:00:06]} g6 {[%emt 0:00:06]} 38. Kf3 {[%emt 0:00:08]} h6 {[%emt 0:00:13]} 39. g4 {[%emt 0:00:03]} Rf8 {[%emt 0:00:06]} 40. h4 {[%emt 0:00:03]} g5 {[%emt 0:00:03]} 41. hxg5 {[%emt 0:00:02]} hxg5 {[%emt 0:00:01]} 42. f5 {[%emt 0:00:00]} Rh8 {[%emt 0:00:03]} 43. Kg2 {[%emt 0:00:07]} Rh6 {[%emt 0:00:14]} 44. Rg7 {[%emt 0:00:13]} Rc6 {[%emt 0:00:10]} 45. Rg8+ {[%emt 0:00:05]} Kf7 {[%emt 0:00:01]} 46. Rgxd8 {[%emt 0:00:03]} Rxc2+ {[%emt 0:00:01]} 47. Kf3 {[%emt 0:00:01]} Rc3+ {[%emt 0:00:02]} 48. Ke2 {[%emt 0:00:01]} Rc2+ {[%emt 0:00:08]} 49. Kd3 {[%emt 0:00:01]} Rg2 {[%emt 0:00:01]} 50. Rd7+ {[%emt 0:00:07]} Kf6 {[%emt 0:00:01]} 51. Ra6# {[%emt 0:00:02] (Lag: Av=0.84s, max=3.4s)} 1-0

[Event "Stay Safe Play From Home slow tournament"]
[Site "Emanuel Lasker Arena"]
[Date "2020.08.29"]
[Round "5"]
[White "Dave_H"]
[Black "Aap64"]
[Result "1-0"]
[WhiteElo "1849"]
[BlackElo "1783"]
[Annotator "NA"]
[PlyCount "39"]
[EventDate "2020.08.29"]
[EventType "swiss (rapid)"]
[WhiteTeam "SK Vellmar"]
[TimeControl "900+5"]

{Halt, David (2088)} 1. e4 {[%emt 0:00:02]} e6 {[%emt 0:00:05]} 2. d4 {[%emt 0:00:03]} d5 {[%emt 0:00:01]} 3. Nd2 {[%emt 0:00:01]} Nf6 {[%emt 0:00:03]} 4. e5 {[%emt 0:00:02]} Nfd7 {[%emt 0:00:02]} 5. Bd3 {[%emt 0:00:01]} c5 {[%emt 0:00:01]} 6. c3 {[%emt 0:00:01]} Nc6 {[%emt 0:00:04]} 7. Ne2 {[%emt 0:00:02]} f6 {[%emt 0:00:31]} 8. Nf4 {[%emt 0:00:14]} Nb6 {[%emt 0:01:07]} 9. Qh5+ {[%emt 0:00:07]} Ke7 {[%emt 0:00:23]} 10. Bxh7 {[%emt 0:00:08]} cxd4 {[%emt 0:00:20]} 11. Ng6+ {[%emt 0:00:03]} Kd7 {[%emt 0:00:11]} 12. Nxh8 {[%emt 0:00:03]} dxc3 {[%emt 0:00:24]} 13. bxc3 {[%emt 0:00:05]} Nxe5 {[%emt 0:00:04]} 14. O-O {[%emt 0:00:05]} Qc7 {[%emt 0:00:41]} 15. Ng6 {[%emt 0:00:40]} Nxg6 {[%emt 0:00:14]} 16. Qxg6 {[%emt 0:00:09]} Qxc3 {[%emt 0:00:04]} 17. Rb1 {[%emt 0:00:09]} Nc4 {[%emt 0:00:15]} 18. Nxc4 {[%emt 0:00:04]} Qxc4 {[%emt 0:00:05]} 19. Qf7+ {[%emt 0:00:04]} Be7 {[%emt 0:00:03]} 20. Ba3 {[%emt 0:00:03] Aap64 gibt auf (Lag: Av=0.50s, max=0.9s)} 1-0